bitfinex/quotes_BTCUSD_20240810
["timestamp","ask_amount","ask_price","bid_price","bid_amount"]
[1723317941130,0.5999589,61160.0,61159.0,0.06726894]
[1723317941357,0.64901257,61160.0,61159.0,0.06726894]
[1723317941505,0.5999589,61160.0,61159.0,0.06726894]
[1723317942144,0.64901599,61160.0,61159.0,0.06726894]
[1723317944314,0.81252099,61160.0,61159.0,0.06726894]
[1723317945139,0.64901599,61160.0,61159.0,0.06726894]
[1723317946745,0.81252099,61160.0,61159.0,0.06726894]
[1723317947377,0.64901599,61160.0,61159.0,0.06726894]
[1723317947569,0.56871599,61160.0,61159.0,0.06726894]
[1723317947771,0.64901599,61160.0,61159.0,0.06726894]
[1723317948715,0.81252099,61160.0,61159.0,0.06726894]
[1723317949409,0.5999589,61160.0,61159.0,0.06726894]
[1723317949775,0.7634639,61160.0,61159.0,0.06726894]
[1723317950583,0.7604639,61160.0,61159.0,0.06626894]
[1723317950988,0.7564639,61160.0,61159.0,0.06626894]
[1723317951469,0.7594639,61160.0,61159.0,0.06626894]
[1723317951782,0.7624639,61160.0,61159.0,0.06726894]
[1723317952402,0.5989589,61160.0,61159.0,0.06726894]
[1723317953854,0.7624639,61160.0,61159.0,0.06726894]
[1723317954090,0.5989589,61160.0,61159.0,0.06726894]
[1723317954662,0.7624639,61160.0,61159.0,0.06726894]
[1723317955547,0.5989589,61160.0,61159.0,0.06726894]
[1723317956264,0.64799176,61160.0,61159.0,0.06726894]
[1723317956591,0.5989589,61160.0,61159.0,0.06726894]
[1723317956745,0.81149676,61160.0,61159.0,0.06726894]
[1723317957771,0.7624639,61160.0,61159.0,0.06726894]
[1723317958418,0.64799176,61160.0,61159.0,0.06726894]
[1723317958981,0.5989589,61160.0,61159.0,0.06726894]
[1723317960078,0.64799176,61160.0,61159.0,0.06726894]
[1723317960853,0.81150621,61160.0,61159.0,0.06726894]
[1723317963808,0.64800121,61160.0,61159.0,0.06726894]
[1723317964738,0.83602737,61160.0,61159.0,0.06726894]
[1723317964913,0.5989589,61160.0,61159.0,0.06726894]
[1723317965052,0.6725008,61160.0,61159.0,0.06726894]
[1723317965259,0.64798944,61160.0,61159.0,0.06726894]
[1723317965525,0.81149444,61160.0,61159.0,0.06726894]
[1723317965720,0.64798944,61160.0,61159.0,0.06726894]
[1723317967870,0.81149444,61160.0,61159.0,0.06726894]
[1723317968019,0.6725008,61160.0,61159.0,0.06726894]
[1723317968343,0.8360058,61160.0,61159.0,0.06726894]
[1723317968584,0.6725008,61160.0,61159.0,0.06726894]
[1723317970544,0.8360058,61160.0,61159.0,0.06726894]
[1723317970745,0.6725008,61160.0,61159.0,0.06726894]
[1723317971365,0.6725008,61160.0,61159.0,0.00276894]
[1723317971571,0.7624639,61160.0,61159.0,0.00276894]
[1723317973226,0.8393639,61160.0,61159.0,0.00276894]
[1723317974939,0.7624639,61160.0,61159.0,0.00276894]
[1723317977542,0.93627882,61160.0,61159.0,0.00276894]
[1723317977764,1.03432494,61160.0,61159.0,0.00276894]
[1723317978406,1.03432642,61160.0,61159.0,0.00276894]
[1723317980320,1.58432642,61160.0,61159.0,0.00276894]
[1723317980696,1.48627882,61160.0,61159.0,0.00276894]
[1723317981488,1.58432642,61160.0,61159.0,0.00276894]
[1723317984026,1.58433058,61160.0,61159.0,0.00276894]
[1723317984216,1.03433058,61160.0,61159.0,0.00276894]
[1723317984424,1.59433058,61160.0,61159.0,0.00276894]
[1723317985247,0.1916489,61160.0,61159.0,0.14986894]
[1723317985456,0.0098969,61160.0,61159.0,0.41091525]
[1723317985674,0.0098969,61160.0,61159.0,0.38320938]
[1723317985904,0.0098969,61160.0,61159.0,0.43230361]
[1723317986104,0.0068969,61160.0,61159.0,0.54571738]
[1723317986359,0.0068969,61160.0,61159.0,0.59478539]
[1723317986564,0.0098969,61160.0,61159.0,0.54671738]
[1723317986762,0.0038969,61160.0,61159.0,0.8730403]
[1723317986936,0.0008969,61160.0,61159.0,0.92108584]
[1723317987137,0.0048969,61160.0,61159.0,0.92208584]
[1723317987306,0.0038969,61160.0,61159.0,0.92208584]
[1723317987514,0.0038969,61160.0,61159.0,0.8730403]
[1723317987717,0.0078969,61160.0,61159.0,0.8740403]
[1723317987995,0.0038969,61160.0,61159.0,1.10648092]
[1723317988168,0.0038969,61160.0,61159.0,1.21292319]
[1723317988347,0.000832,61167.0,61159.0,1.21292319]
[1723317988348,0.000832,61167.0,61166.0,0.65190631]
[1723317988523,0.000832,61167.0,61166.0,1.02143006]
[1723317988721,0.000832,61167.0,61166.0,0.97241044]
[1723317988927,0.000832,61167.0,61166.0,0.97237784]
[1723317990775,0.000832,61167.0,61166.0,0.97937784]
[1723317990981,0.000832,61167.0,61166.0,0.97237784]
[1723317991405,0.000832,61167.0,61166.0,0.97937784]
[1723317992298,0.000832,61167.0,61166.0,0.97937992]
[1723317993038,0.000832,61167.0,61166.0,0.97237992]
[1723317993259,0.000832,61167.0,61166.0,0.97937992]
[1723317993460,0.000832,61167.0,61166.0,0.97237992]
[1723317993674,0.000832,61167.0,61166.0,0.326543]
[1723317993874,0.000832,61167.0,61166.0,0.19777139]
[1723317994194,0.000832,61167.0,61166.0,0.27951539]
[1723317994692,0.000832,61167.0,61166.0,0.42211731]
[1723317996063,0.000832,61167.0,61166.0,0.41511731]
[1723317996275,0.000832,61167.0,61166.0,0.55089321]
[1723317996481,0.000832,61167.0,61166.0,0.42211731]
[1723317997018,0.000832,61167.0,61166.0,0.41511731]
[1723317997245,0.000832,61167.0,61166.0,0.42211731]
[1723317998120,0.246061,61167.0,61166.0,0.0778]
[1723317998724,0.246061,61167.0,61166.0,0.08358431]
[1723317999801,0.25562936,61167.0,61166.0,0.08358431]
[1723317999932,0.25562936,61167.0,61166.0,0.01978431]
[1723318000139,0.246061,61167.0,61166.0,0.01978431]
[1723318002027,0.246061,61167.0,61166.0,0.25402831]
[1723318002028,0.000832,61167.0,61166.0,0.25402831]
[1723318002209,0.000832,61167.0,61166.0,0.42078676]
[1723318002674,0.000832,61167.0,61166.0,0.55329022]
[1723318003139,0.000832,61167.0,61166.0,0.71677922]
[1723318006201,0.000832,61167.0,61166.0,0.58100631]
[1723318006409,0.000832,61167.0,61166.0,0.71677918]
[1723318009584,0.000832,61167.0,61166.0,0.71677873]
[1723318010314,0.000832,61167.0,61166.0,0.55329014]
[1723318010696,0.000832,61167.0,61166.0,0.70099483]
[1723318010922,0.000832,61167.0,61166.0,0.71677914]
[1723318011500,0.000832,61167.0,61166.0,0.55329014]
[1723318011821,0.000832,61167.0,61166.0,0.71677914]
[1723318012969,0.000832,61167.0,61166.0,0.565222]
[1723318013167,0.000832,61167.0,61166.0,0.70099137]
[1723318013407,0.000832,61167.0,61166.0,0.71677568]
[1723318013607,0.000832,61167.0,61166.0,0.70099137]
[1723318016390,0.000832,61167.0,61166.0,0.71677568]
[1723318016627,0.000832,61167.0,61166.0,0.58100631]
[1723318016829,0.000832,61167.0,61166.0,0.78465976]
[1723318017035,0.000832,61167.0,61166.0,0.71677567]
[1723318017148,0.000832,61167.0,61166.0,0.78466013]
[1723318017567,0.000832,61167.0,61166.0,0.95885163]
[1723318017765,0.000832,61167.0,61166.0,0.78466013]
[1723318018002,0.000832,61167.0,61166.0,0.95885163]
[1723318018201,0.000832,61167.0,61166.0,0.78466013]
[1723318018503,0.000832,61167.0,61166.0,0.95885163]
[1723318018736,0.000832,61167.0,61166.0,0.78466013]
[1723318018916,0.000832,61167.0,61166.0,0.95885163]
[1723318019321,0.000832,61167.0,61166.0,0.62117113]
[1723318019525,0.000832,61167.0,61166.0,0.79536263]
[1723318020077,0.000832,61167.0,61166.0,0.72734499]
[1723318020270,0.000832,61167.0,61166.0,0.79522719]
[1723318020670,0.000832,61167.0,61166.0,0.63310437]
[1723318020865,0.000832,61167.0,61166.0,0.78465342]
[1723318021048,0.000832,61167.0,61166.0,0.95869861]
[1723318022785,0.000832,61167.0,61166.0,0.95868044]
[1723318024047,0.000832,61167.0,61166.0,1.28598436]
[1723318024247,0.000832,61167.0,61166.0,1.27020005]
[1723318025175,0.000832,61167.0,61166.0,1.28598436]
[1723318026278,0.000832,61167.0,61166.0,1.28659739]
[1723318027407,0.000832,61167.0,61166.0,1.29859739]
[1723318027968,0.000832,61167.0,61166.0,1.28659739]
[1723318028176,0.000832,61167.0,61166.0,1.50513693]
[1723318028737,0.000832,61167.0,61166.0,1.52955836]
[1723318029278,0.000832,61167.0,61166.0,1.52971614]
[1723318029517,0.000832,61167.0,61166.0,1.31661258]
[1723318029670,0.000832,61167.0,61166.0,1.55418759]
[1723318029870,0.000832,61167.0,61166.0,1.56381074]
[1723318030090,0.000832,61167.0,61166.0,1.56383373]
[1723318030660,0.000832,61167.0,61166.0,1.58830775]
[1723318031534,0.000832,61167.0,61166.0,1.46593767]
[1723318033149,0.000832,61167.0,61166.0,1.46593449]
[1723318036754,0.000832,61167.0,61166.0,1.46607636]
[1723318038785,0.000832,61167.0,61166.0,1.45645321]
[1723318039028,0.000832,61167.0,61166.0,1.6592712]
[1723318039188,0.000832,61167.0,61166.0,1.53675321]
[1723318039586,0.000832,61167.0,61166.0,1.63904805]
[1723318040220,0.000832,61167.0,61166.0,1.63891218]
[1723318040600,0.000832,61167.0,61166.0,1.50307923]
[1723318040799,0.000832,61167.0,61166.0,1.63882976]
[1723318043314,0.000832,61167.0,61166.0,1.62304545]
[1723318043556,0.000832,61167.0,61166.0,1.63882976]
[1723318043756,0.000832,61167.0,61166.0,1.63883048]
[1723318047219,0.000832,61167.0,61166.0,1.63882933]
[1723318049501,0.000832,61167.0,61166.0,1.63883525]
[1723318050786,0.000832,61167.0,61166.0,1.6390021]
[1723318051307,0.000832,61167.0,61166.0,1.63900297]
[1723318051862,0.000832,61167.0,61166.0,1.63899913]
[1723318052518,0.000832,61167.0,61166.0,1.46930939]
[1723318052662,0.000832,61167.0,61166.0,1.6390047]
[1723318053481,0.000832,61167.0,61166.0,1.6340047]
[1723318053899,0.000832,61167.0,61166.0,1.5579047]
[1723318054286,0.000832,61167.0,61166.0,1.5781731]
[1723318054462,0.000832,61167.0,61166.0,1.22572912]
[1723318054615,0.000832,61167.0,61166.0,1.34829236]
[1723318054818,0.000832,61167.0,61166.0,1.05602791]
[1723318056067,0.062432,61167.0,61166.0,1.05602791]
[1723318057248,0.000832,61167.0,61166.0,1.05602791]
[1723318057411,0.000832,61167.0,61166.0,0.64842399]
[1723318057614,0.000832,61167.0,61166.0,0.47365379]
[1723318057828,0.000832,61167.0,61166.0,0.40578914]
[1723318058227,0.000832,61167.0,61166.0,0.61831951]
[1723318058686,0.000832,61167.0,61166.0,0.61831783]
[1723318058861,0.000832,61167.0,61166.0,0.88599426]
[1723318059042,0.000832,61167.0,61166.0,0.88599473]
[1723318059776,0.000832,61167.0,61166.0,0.81243765]
[1723318059974,0.000832,61167.0,61166.0,0.93500089]
[1723318061207,0.000832,61167.0,61166.0,0.62395044]
[1723318061432,0.000832,61167.0,61166.0,0.93494352]
[1723318061844,0.000832,61167.0,61166.0,0.62395044]
[1723318062033,0.000832,61167.0,61166.0,0.93504301]
[1723318062273,0.000832,61167.0,61166.0,0.91056508]
[1723318062451,0.222075,61167.0,61166.0,0.24284709]
[1723318062674,0.385561,61167.0,61166.0,0.14476178]
[1723318062869,0.649047,61167.0,61166.0,0.14476178]
[1723318063193,0.649047,61167.0,61166.0,0.009]
[1723318063393,0.649047,61167.0,61166.0,0.007]
[1723318063646,0.649047,61167.0,61166.0,0.009]
[1723318063971,0.65858616,61167.0,61166.0,0.002]
[1723318064592,0.65858616,61167.0,61166.0,0.004]
[1723318064793,0.081751,61161.0,61160.0,0.0009152]
[1723318064927,0.728555,61161.0,61160.0,0.0009152]
[1723318065350,0.484753,61161.0,61160.0,0.0009152]
[1723318065556,0.321251,61161.0,61160.0,0.0009152]
[1723318066054,0.28870971,61161.0,61160.0,0.0009152]
[1723318067051,0.29070971,61161.0,61160.0,0.0009152]
[1723318067258,0.29070971,61161.0,61160.0,0.0019152]
[1723318067466,0.29170971,61161.0,61160.0,0.0019152]
[1723318067667,0.29070971,61161.0,61160.0,0.0009152]
[1723318067881,0.29270971,61161.0,61160.0,0.0009152]
[1723318068480,0.29270971,61161.0,61160.0,0.00669951]
[1723318068719,0.29270971,61161.0,61160.0,0.0009152]
[1723318068720,0.61971371,61161.0,61160.0,0.0009152]
[1723318073564,0.62054571,61161.0,61160.0,0.0009152]
[1723318075206,1.62786263,61161.0,61160.0,0.0009152]
[1723318075404,0.96207832,61161.0,61160.0,0.0009152]
[1723318075998,0.96007832,61161.0,61160.0,0.0009152]
[1723318076432,0.96507832,61161.0,61160.0,0.0019152]
[1723318077020,0.95807832,61161.0,61160.0,0.0009152]
[1723318077131,0.96607832,61161.0,61160.0,0.0029152]
[1723318077338,0.95886263,61161.0,61160.0,0.0019152]
[1723318077761,0.96186263,61161.0,61160.0,0.0029152]
[1723318077963,0.96607832,61161.0,61160.0,0.0029152]
[1723318078162,0.96186263,61161.0,61160.0,0.0029152]
[1723318078368,0.95386263,61161.0,61160.0,0.0009152]
[1723318078827,0.95886263,61161.0,61160.0,0.0019152]
[1723318079416,0.96786263,61161.0,61160.0,0.0029152]
[1723318079781,0.95886263,61161.0,61160.0,0.0019152]
[1723318080058,0.96786263,61161.0,61160.0,0.0029152]
[1723318080786,0.95786263,61161.0,61160.0,0.0029152]
[1723318081397,0.96786263,61161.0,61160.0,0.0029152]
[1723318081639,0.97441463,61161.0,61160.0,0.0029152]
[1723318081846,0.96441463,61161.0,61160.0,0.0029152]
[1723318082046,0.80059971,61161.0,61160.0,0.0029152]
[1723318082520,0.79159971,61161.0,61160.0,0.0019152]
[1723318082944,0.79859971,61161.0,61160.0,0.0029152]
[1723318083867,0.79359971,61161.0,61160.0,0.0019152]
[1723318084294,0.79359971,61161.0,61160.0,0.0029152]
[1723318084295,0.79659971,61161.0,61160.0,0.0029152]
[1723318085747,0.97041463,61161.0,61160.0,0.0029152]
[1723318086375,1.77813232,61161.0,61160.0,0.0029152]
[1723318086608,1.80113232,61161.0,61160.0,0.0029152]
[1723318088718,1.9398687,61161.0,61160.0,0.0029152]
[1723318088888,1.9398687,61161.0,61158.0,0.0009152]
[1723318088889,0.09596969,61159.0,61158.0,0.0009152]
[1723318089095,1.14038461,61159.0,61158.0,0.0009152]
[1723318089456,1.89441661,61159.0,61158.0,0.0009152]
[1723318090457,1.89741661,61159.0,61158.0,0.0019152]
[1723318090661,1.99563502,61159.0,61158.0,0.0019152]
[1723318090810,0.01,61151.0,61150.0,0.0009152]
[1723318091017,0.97376592,61151.0,61150.0,0.0009152]
[1723318091223,1.07798161,61151.0,61150.0,0.0009152]
[1723318092089,1.08098161,61151.0,61150.0,0.0019152]
[1723318092453,1.08098161,61151.0,61150.0,0.0029152]
[1723318092660,1.82351061,61151.0,61150.0,0.0029152]
[1723318093523,1.98766031,61151.0,61150.0,0.0029152]
[1723318093661,2.01066031,61151.0,61150.0,0.0029152]
[1723318094400,2.07886206,61151.0,61150.0,0.0029152]
[1723318094577,2.09667765,61151.0,61150.0,0.0029152]
[1723318094784,2.09667765,61151.0,61142.0,0.0009141]
[1723318094785,0.75019469,61143.0,61142.0,0.0009141]
[1723318094980,2.35859104,61143.0,61142.0,0.0009141]
[1723318095186,0.489302,61124.0,61123.0,0.0655]
[1723318095863,0.0818,61124.0,61123.0,0.0655]
[1723318096069,0.1,61131.0,61130.0,0.01578431]
[1723318096267,0.081789,61133.0,61130.0,0.0655]
[1723318096442,0.08179,61132.0,61131.0,0.09168431]
[1723318096653,0.18179,61132.0,61131.0,0.07998431]
[1723318097023,0.18179,61132.0,61131.0,0.0642]
[1723318097229,0.34537,61132.0,61131.0,0.07998431]
[1723318097559,0.34537,61132.0,61131.0,0.0642]
[1723318097710,0.34537,61132.0,61131.0,0.07998431]
[1723318097921,0.34537,61132.0,61131.0,0.0642]
[1723318099772,0.245374,61131.0,61130.0,0.0655]
[1723318100182,0.245374,61131.0,61128.0,0.00578431]
[1723318100183,0.245382,61129.0,61128.0,0.00578431]
[1723318100594,0.408977,61128.0,61127.0,0.00578431]
[1723318100798,0.408977,61128.0,61121.0,0.0655]
[1723318100799,0.16381492,61128.0,61121.0,0.0655]
[1723318100985,0.081804,61122.0,61121.0,0.0655]
[1723318101112,0.081804,61122.0,61121.0,0.07128431]
[1723318101311,0.245411,61122.0,61121.0,0.07128431]
[1723318101516,0.245411,61122.0,61121.0,0.0655]
[1723318101728,0.245411,61122.0,61121.0,0.07128431]
[1723318101934,0.245411,61122.0,61119.0,0.0655]
[1723318101935,0.245418,61120.0,61119.0,0.0655]
[1723318102794,0.08181,61117.0,61116.0,0.0759]
[1723318103983,0.08281,61117.0,61116.0,0.0759]
[1723318104448,0.08381,61117.0,61116.0,0.0759]
[1723318105075,0.08381,61117.0,61115.0,0.0621]
[1723318105706,0.002,61117.0,61115.0,0.143912]
[1723318105927,0.002,61117.0,61108.0,0.0009781]
[1723318105928,0.002,61117.0,61116.0,0.219011]
[1723318106133,0.002,61117.0,61116.0,0.54972089]
[1723318106301,0.002,61117.0,61116.0,0.7291282]
[1723318106505,0.163601,61125.0,61116.0,0.54644892]
[1723318106803,0.081803,61123.0,61119.0,0.081807]
[1723318107001,0.0818,61125.0,61120.0,0.156906]
[1723318107201,0.081801,61124.0,61120.0,0.0751]
[1723318107992,0.1,61125.0,61120.0,0.156906]
[1723318108160,0.181799,61125.0,61124.0,0.00578431]
[1723318108745,0.245398,61125.0,61124.0,0.00578431]
[1723318108872,0.345398,61125.0,61124.0,0.00578431]
[1723318110119,0.508997,61125.0,61124.0,0.00578431]
[1723318110319,0.081804,61121.0,61118.0,0.0621]
[1723318110522,0.081804,61121.0,61120.0,0.00578431]
[1723318111496,0.082804,61121.0,61120.0,0.00578431]
[1723318111873,0.083804,61121.0,61120.0,0.00578431]
[1723318112438,0.083804,61121.0,61120.0,0.23479031]
[1723318112439,0.002,61121.0,61120.0,0.23479031]
[1723318112783,0.002,61121.0,61120.0,0.1372]
[1723318112933,0.002,61121.0,61120.0,0.15298431]
[1723318113132,0.001,61121.0,61120.0,0.300812]
[1723318113344,0.002,61121.0,61120.0,0.382618]
[1723318113746,0.002,61121.0,61120.0,0.219006]
[1723318114025,0.002,61121.0,61120.0,0.382618]
[1723318114986,0.002,61121.0,61120.0,0.219006]
[1723318116450,0.002,61121.0,61120.0,0.35488783]
[1723318119454,0.002,61121.0,61120.0,0.35488487]
[1723318120783,0.002,61121.0,61120.0,0.21376318]
[1723318121307,0.002,61121.0,61120.0,0.01578431]
[1723318121871,0.083804,61121.0,61120.0,0.00669951]
[1723318122099,0.247413,61121.0,61120.0,0.00669951]
[1723318123492,0.081809,61118.0,61114.0,0.11326791]
[1723318123699,0.081809,61118.0,61115.0,0.13589341]
[1723318123926,0.081809,61118.0,61116.0,0.13589341]
[1723318124144,0.081809,61118.0,61117.0,0.13589341]
[1723318124604,0.081806,61120.0,61118.0,0.0603]
[1723318124735,0.001,61121.0,61120.0,0.0603]
[1723318124949,0.001,61121.0,61120.0,0.27799941]
[1723318125137,0.1818,61125.0,61120.0,0.27799941]
[1723318125465,0.1,61125.0,61121.0,0.13589341]
[1723318125639,0.181799,61125.0,61122.0,0.13589341]
[1723318125818,0.081799,61125.0,61123.0,0.13589341]
[1723318126023,0.081799,61125.0,61124.0,0.13589341]
[1723318126683,0.081799,61125.0,61124.0,0.0787]
[1723318126878,0.081799,61125.0,61124.0,0.21457956]
[1723318128855,0.081798,61126.0,61124.0,0.21457956]
[1723318129046,0.081798,61126.0,61125.0,0.13587956]
[1723318129498,0.078232,61132.0,61126.0,0.0603]
[1723318129499,0.000832,61132.0,61126.0,0.0603]
[1723318129693,0.082622,61132.0,61128.0,0.0603]
[1723318129847,0.000832,61132.0,61128.0,0.142094]
[1723318130027,0.000832,61132.0,61129.0,0.13587543]
[1723318130230,0.164416,61131.0,61128.0,0.0603]
[1723318130410,0.246208,61131.0,61129.0,0.13587516]
[1723318130610,0.252208,61131.0,61128.0,0.0603]
[1723318130867,0.252208,61131.0,61129.0,0.13587474]
[1723318131021,0.252208,61131.0,61128.0,0.0603]
[1723318131251,0.258208,61131.0,61129.0,0.13587383]
[1723318131451,0.258208,61131.0,61128.0,0.0603]
[1723318131452,0.246208,61131.0,61128.0,0.0603]
[1723318131669,0.082624,61131.0,61129.0,0.13587365]
[1723318132197,0.006832,61131.0,61130.0,0.13587364]
[1723318132609,0.000832,61131.0,61130.0,0.13587364]
[1723318132772,0.012832,61131.0,61130.0,0.13587364]
[1723318132973,0.006832,61131.0,61130.0,0.27797364]
[1723318134809,0.006832,61131.0,61130.0,0.35975467]
[1723318135034,0.000832,61131.0,61130.0,0.35975467]
[1723318136034,0.000832,61131.0,61130.0,0.36075467]
[1723318136459,0.000832,61131.0,61130.0,0.27896267]
[1723318137475,0.000832,61131.0,61130.0,0.19696267]
[1723318137655,0.000832,61131.0,61130.0,0.19796267]
[1723318138312,0.000832,61131.0,61130.0,0.0621]
[1723318138483,0.082623,61131.0,61130.0,0.19796251]
[1723318138971,0.082623,61131.0,61130.0,0.19696251]
[1723318139181,0.000832,61131.0,61130.0,0.19696251]
[1723318139383,0.000832,61131.0,61130.0,0.52333951]
[1723318140007,0.000832,61131.0,61130.0,0.68692451]
[1723318140207,0.000832,61131.0,61130.0,1.01432443]
[1723318140408,0.000832,61131.0,61130.0,1.08224713]
[1723318141049,0.000832,61131.0,61130.0,1.04442524]
[1723318141206,0.000832,61131.0,61130.0,1.25819389]
[1723318141647,0.000832,61131.0,61130.0,1.35618794]
[1723318141976,0.000832,61131.0,61130.0,1.18022192]
[1723318142583,0.001832,61131.0,61130.0,1.08221896]
[1723318143355,0.001832,61131.0,61130.0,1.15569456]
[1723318143557,0.001832,61131.0,61130.0,1.08221896]
[1723318143787,0.001832,61131.0,61130.0,1.15567552]
[1723318144390,0.001832,61131.0,61130.0,1.01983749]
[1723318144571,0.001832,61131.0,61130.0,1.13117741]
[1723318144750,0.001832,61131.0,61130.0,1.08221896]
[1723318145185,0.001832,61131.0,61130.0,1.06325842]
[1723318145646,0.001832,61131.0,61130.0,1.01429995]
[1723318146090,0.001832,61131.0,61130.0,0.85071495]
[1723318146352,0.001832,61131.0,61130.0,0.68690003]
[1723318149662,0.001832,61131.0,61130.0,0.13583803]
[1723318149884,0.001832,61131.0,61130.0,0.21763003]
[1723318150301,0.001832,61131.0,61130.0,0.081792]
[1723318150507,0.001832,61131.0,61130.0,0.21765291]
[1723318150711,0.001832,61131.0,61129.0,0.081794]
[1723318151038,0.002832,61131.0,61129.0,0.081794]
[1723318151236,0.002832,61131.0,61126.0,0.0611]
[1723318151237,0.002832,61131.0,61126.0,0.142898]
[1723318151410,0.081792,61130.0,61127.0,0.13586287]
[1723318151610,0.083623,61131.0,61128.0,0.13586287]
[1723318151823,0.000832,61131.0,61124.0,0.1438152]
[1723318152023,0.0775,61128.0,61125.0,0.2176627]
[1723318152274,0.0775,61128.0,61126.0,0.1358637]
[1723318152423,0.0775,61128.0,61127.0,0.1358637]
[1723318154685,0.000832,61131.0,61127.0,0.1358637]
[1723318154901,0.000832,61131.0,61128.0,0.081794]
[1723318155016,0.000832,61131.0,61129.0,0.13586664]
[1723318155374,0.000832,61131.0,61130.0,0.13586057]
[1723318155716,0.000832,61131.0,61130.0,0.21765257]
[1723318155919,0.082232,61131.0,61130.0,0.13586057]
[1723318156136,0.081232,61131.0,61130.0,0.13586057]
[1723318157659,0.079232,61131.0,61130.0,0.13586057]
[1723318157859,0.080232,61131.0,61130.0,0.13586057]
[1723318158199,0.081232,61131.0,61130.0,0.13586057]
[1723318158351,0.079232,61131.0,61130.0,0.13586056]
[1723318158561,0.081232,61131.0,61130.0,0.13586056]
[1723318158926,0.084232,61131.0,61130.0,0.13586056]
[1723318159146,0.081232,61131.0,61130.0,0.13586056]
[1723318159355,0.002832,61131.0,61130.0,0.13586056]
[1723318159628,0.000832,61131.0,61130.0,0.21765256]
[1723318160725,0.000832,61131.0,61130.0,0.38123756]
[1723318160866,0.000832,61131.0,61130.0,0.30045256]
[1723318161253,0.000832,61131.0,61130.0,0.21765256]
[1723318161961,0.000832,61131.0,61130.0,0.38123712]
[1723318162401,0.000832,61131.0,61130.0,0.245377]
[1723318162605,0.000832,61131.0,61130.0,0.38123692]
[1723318162810,0.000832,61131.0,61130.0,0.21765192]
[1723318163026,0.000832,61131.0,61130.0,0.6933932]
[1723318163217,0.000832,61131.0,61130.0,0.85720812]
[1723318163419,0.000832,61131.0,61130.0,0.85393684]
[1723318164886,0.000832,61131.0,61130.0,0.69012192]
[1723318165508,0.000832,61131.0,61130.0,0.69011949]
[1723318165705,0.000832,61131.0,61130.0,0.60731949]
[1723318168871,0.000832,61131.0,61130.0,0.471462]
[1723318169081,0.000832,61131.0,61130.0,0.60731347]
[1723318169944,0.000832,61131.0,61130.0,0.60731297]
[1723318172541,0.000832,61131.0,61130.0,0.471462]
[1723318172700,0.000832,61131.0,61130.0,0.60731085]
[1723318173285,0.000832,61131.0,61130.0,0.6073109]
[1723318174695,0.000832,61131.0,61130.0,1.01721082]
[1723318174920,0.000832,61131.0,61130.0,1.33429714]
[1723318175123,0.000832,61131.0,61130.0,1.55980371]
[1723318175492,0.000832,61131.0,61130.0,1.56180371]
[1723318175687,0.000832,61131.0,61130.0,1.55980371]
[1723318176213,0.000832,61131.0,61130.0,1.55986471]
[1723318176795,0.000832,61131.0,61130.0,1.55989727]
[1723318177005,0.000832,61131.0,61130.0,1.72348227]
[1723318177374,0.000832,61131.0,61130.0,1.81822591]
[1723318177749,0.000832,61131.0,61130.0,1.92057902]
[1723318177903,0.000832,61131.0,61130.0,1.93214878]
[1723318178115,0.000832,61131.0,61130.0,1.93014878]
[1723318178530,0.000832,61131.0,61130.0,1.82779567]
[1723318178999,0.000832,61131.0,61130.0,1.83079567]
[1723318179315,0.000832,61131.0,61130.0,1.82779567]
[1723318179515,0.000832,61131.0,61130.0,1.34643757]
[1723318179720,0.001832,61131.0,61130.0,1.8357285]
[1723318181064,0.002832,61131.0,61130.0,1.83571831]
[1723318181264,0.002832,61131.0,61130.0,1.82571831]
[1723318181669,0.002832,61131.0,61130.0,1.82771831]
[1723318182290,0.002832,61131.0,61130.0,1.92806857]
[1723318182722,0.002832,61131.0,61130.0,1.80271831]
[1723318182929,0.002832,61131.0,61130.0,1.62706302]
[1723318183172,0.002832,61131.0,61130.0,1.62705965]
[1723318183477,0.002832,61131.0,61130.0,1.7495737]
[1723318183716,0.002832,61131.0,61130.0,1.62705976]
[1723318183866,0.002832,61131.0,61130.0,1.57978119]
[1723318184073,0.002832,61131.0,61130.0,1.57021143]
[1723318184274,0.002832,61131.0,61130.0,1.44769774]
[1723318184723,0.002832,61131.0,61130.0,1.28411274]
[1723318186745,0.002832,61131.0,61130.0,1.28411444]
[1723318187775,0.002832,61131.0,61130.0,1.16351444]
[1723318188746,0.002832,61131.0,61130.0,1.87664064]
[1723318189248,0.002832,61131.0,61130.0,1.79479418]
[1723318189644,0.002832,61131.0,61130.0,1.93819418]
[1723318190287,0.002832,61131.0,61130.0,1.93818002]
[1723318190870,0.002832,61131.0,61130.0,1.81566309]
[1723318191276,0.002832,61131.0,61130.0,1.9180125]
[1723318192412,0.002832,61131.0,61130.0,1.8950125]
[1723318193033,0.002832,61131.0,61130.0,1.75156391]
[1723318193578,0.002832,61131.0,61130.0,1.27056451]
[1723318193820,0.002832,61131.0,61130.0,1.75162271]
[1723318194287,0.002832,61131.0,61130.0,1.45370486]
[1723318194489,0.002832,61131.0,61130.0,1.62913785]
[1723318194714,0.002832,61131.0,61130.0,1.75162367]
[1723318195455,0.002832,61131.0,61130.0,1.75162342]
[1723318197323,0.002832,61131.0,61130.0,1.62907852]
[1723318197625,0.002832,61131.0,61130.0,1.7314284]
[1723318197758,0.002832,61131.0,61130.0,1.8950134]
[1723318198159,0.002832,61131.0,61130.0,1.7314284]
[1723318198989,0.002832,61131.0,61130.0,1.5536284]
[1723318199188,0.002832,61131.0,61130.0,1.7544284]
[1723318200698,0.002832,61131.0,61130.0,1.27342513]
[1723318200870,0.002832,61131.0,61130.0,1.75426075]
[1723318201558,0.002832,61131.0,61130.0,2.01784575]
[1723318202149,0.002832,61131.0,61130.0,1.83126075]
[1723318203224,0.002832,61131.0,61130.0,2.00613246]
[1723318203628,0.002832,61131.0,61130.0,1.45756048]
[1723318203831,0.002832,61131.0,61130.0,2.00613199]
[1723318204750,0.002832,61131.0,61130.0,1.92363199]
[1723318204951,0.002832,61131.0,61130.0,1.92363376]
[1723318206305,0.002832,61131.0,61130.0,2.16321876]
[1723318206511,0.002832,61131.0,61130.0,2.17304418]
[1723318206697,0.002832,61131.0,61130.0,1.99799232]
[1723318206921,0.002832,61131.0,61130.0,2.18546078]
[1723318207053,0.002832,61131.0,61130.0,2.17346078]
[1723318207251,0.002832,61131.0,61130.0,2.17563541]